[Event "*** Titled Tuesday Blitz"]
[Site "Chess.com"]
[Date "2021.02.02"]
[Round "9"]
[White "frederiksvane"]
[Black "maximnovik"]
[Result "1/2-1/2"]
[WhiteElo "2749"]
[BlackElo "2567"]
[TimeControl "180+1"]
[EndTime "11:47:37 PST"]
[Termination "Game drawn - insufficient material"]

1. e4 {[%clk 0:03:00.9]} 1... c6 {[%clk 0:02:55.4]} 2. d4 {[%clk 0:02:59.8]}
2... d5 {[%clk 0:02:54.5]} 3. exd5 {[%clk 0:03:00.7]} 3... cxd5 {[%clk
0:02:54.1]} 4. Bd3 {[%clk 0:03:01]} 4... Nc6 {[%clk 0:02:53.1]} 5. c3 {[%clk
0:03:01.1]} 5... Nf6 {[%clk 0:02:51.3]} 6. Bf4 {[%clk 0:03:00.7]} 6... Bg4
{[%clk 0:02:49.4]} 7. Qb3 {[%clk 0:02:59.6]} 7... Qc8 {[%clk 0:02:49.2]} 8. Nd2
{[%clk 0:02:59.1]} 8... e6 {[%clk 0:02:48.7]} 9. Ngf3 {[%clk 0:02:59.4]} 9...
Bh5 {[%clk 0:02:47.9]} 10. O-O {[%clk 0:02:58.1]} 10... Bg6 {[%clk 0:02:48.2]}
11. Bxg6 {[%clk 0:02:58]} 11... hxg6 {[%clk 0:02:47.6]} 12. Rae1 {[%clk
0:02:56]} 12... Be7 {[%clk 0:02:45.7]} 13. Ne5 {[%clk 0:02:51.5]} 13... Nh5
{[%clk 0:02:39.4]} 14. Be3 {[%clk 0:02:48.7]} 14... g5 {[%clk 0:02:20.7]} 15.
Ndf3 {[%clk 0:02:23.8]} 15... f6 {[%clk 0:02:14.1]} 16. Ng6 {[%clk 0:01:57.8]}
16... Rh6 {[%clk 0:02:06.5]} 17. Nxe7 {[%clk 0:01:57.7]} 17... Nxe7 {[%clk
0:01:56.8]} 18. h4 {[%clk 0:01:43.5]} 18... g4 {[%clk 0:01:55.6]} 19. Bxh6
{[%clk 0:01:43.4]} 19... gxf3 {[%clk 0:01:55.2]} 20. Bd2 {[%clk 0:01:37.3]}
20... fxg2 {[%clk 0:01:46]} 21. Kxg2 {[%clk 0:01:38.2]} 21... Kf7 {[%clk
0:01:38]} 22. Qd1 {[%clk 0:01:31.1]} 22... g6 {[%clk 0:01:36.9]} 23. Qg4 {[%clk
0:01:30.5]} 23... Nf5 {[%clk 0:01:36.5]} 24. Re2 {[%clk 0:01:16.7]} 24... Qd7
{[%clk 0:01:34.1]} 25. Rfe1 {[%clk 0:01:00.1]} 25... Nhg7 {[%clk 0:01:33.2]} 26.
Rh1 {[%clk 0:00:48]} 26... Rh8 {[%clk 0:01:31.3]} 27. Bf4 {[%clk 0:00:39.7]}
27... Rh5 {[%clk 0:01:19.5]} 28. Bg3 {[%clk 0:00:36.8]} 28... e5 {[%clk
0:01:12.7]} 29. Kg1 {[%clk 0:00:21.6]} 29... e4 {[%clk 0:01:08.7]} 30. f3 {[%clk
0:00:18.3]} 30... Qb5 {[%clk 0:01:03.6]} 31. Rhh2 {[%clk 0:00:13]} 31... Qd3
{[%clk 0:00:56.9]} 32. fxe4 {[%clk 0:00:10.3]} 32... Qxg3+ {[%clk 0:00:56.7]}
33. Rhg2 {[%clk 0:00:03.6]} 33... Qxg4 {[%clk 0:00:51.7]} 34. Rxg4 {[%clk
0:00:04.5]} 34... dxe4 {[%clk 0:00:50]} 35. Rgxe4 {[%clk 0:00:04.8]} 35... Rxh4
{[%clk 0:00:43.8]} 36. Rxh4 {[%clk 0:00:05.1]} 36... Nxh4 {[%clk 0:00:43]} 37.
d5 {[%clk 0:00:04.4]} 37... Nhf5 {[%clk 0:00:42.1]} 38. c4 {[%clk 0:00:04]}
38... g5 {[%clk 0:00:22.3]} 39. c5 {[%clk 0:00:04.2]} 39... Ne7 {[%clk
0:00:16.7]} 40. d6 {[%clk 0:00:02]} 40... Nc6 {[%clk 0:00:16.6]} 41. b4 {[%clk
0:00:01.3]} 41... a6 {[%clk 0:00:15.8]} 42. a4 {[%clk 0:00:01.2]} 42... Nxb4
{[%clk 0:00:14.9]} 43. a5 {[%clk 0:00:01.5]} 43... Nc6 {[%clk 0:00:14.2]} 44.
Rb2 {[%clk 0:00:02]} 44... Nxa5 {[%clk 0:00:13.8]} 45. Rb6 {[%clk 0:00:01.9]}
45... Ne6 {[%clk 0:00:12.7]} 46. d7 {[%clk 0:00:01.8]} 46... Nd8 {[%clk
0:00:11.5]} 47. Kf2 {[%clk 0:00:02]} 47... Nac6 {[%clk 0:00:11.7]} 48. Kf3
{[%clk 0:00:01.7]} 48... Ke7 {[%clk 0:00:12.1]} 49. Ke4 {[%clk 0:00:02.2]} 49...
Kxd7 {[%clk 0:00:12.4]} 50. Kf5 {[%clk 0:00:02.8]} 50... Ke7 {[%clk 0:00:12.5]}
51. Rb3 {[%clk 0:00:02.3]} 51... a5 {[%clk 0:00:12.7]} 52. Re3+ {[%clk
0:00:02.3]} 52... Kf7 {[%clk 0:00:12.9]} 53. Rd3 {[%clk 0:00:01.7]} 53... Ke7
{[%clk 0:00:11.4]} 54. Re3+ {[%clk 0:00:01.7]} 54... Ne5 {[%clk 0:00:11.1]} 55.
Rb3 {[%clk 0:00:01.3]} 55... Kd7 {[%clk 0:00:08]} 56. Ra3 {[%clk 0:00:01.2]}
56... Ndc6 {[%clk 0:00:06.7]} 57. Kxf6 {[%clk 0:00:02.1]} 57... Nc4 {[%clk
0:00:06.6]} 58. Rc3 {[%clk 0:00:02.1]} 58... N4e5 {[%clk 0:00:05.6]} 59. Kxg5
{[%clk 0:00:02.6]} 59... Nd4 {[%clk 0:00:05.3]} 60. Ra3 {[%clk 0:00:01.4]} 60...
Kc6 {[%clk 0:00:05]} 61. Rxa5 {[%clk 0:00:01.2]} 61... Nb5 {[%clk 0:00:05.5]}
62. Ra3 {[%clk 0:00:01.8]} 62... Nc4 {[%clk 0:00:05.7]} 63. Rb3 {[%clk
0:00:01.8]} 63... Kxc5 {[%clk 0:00:05.9]} 64. Kf4 {[%clk 0:00:02]} 64... Nbd6
{[%clk 0:00:06.4]} 65. Rxb7 {[%clk 0:00:02.1]} 65... Ne5 {[%clk 0:00:03.5]} 66.
Kxe5 {[%clk 0:00:02.2]} 66... Nxb7 {[%clk 0:00:03.1]} 1/2-1/2

[Event "*** Titled Tuesday Blitz"]
[Site "Chess.com"]
[Date "2021.02.02"]
[Round "9"]
[White "AlexeiShirov"]
[Black "Msb2"]
[Result "1/2-1/2"]
[WhiteElo "2847"]
[BlackElo "2911"]
[TimeControl "180+1"]
[EndTime "11:47:52 PST"]
[Termination "Game drawn by repetition"]

1. e4 {[%clk 0:03:00.9]} 1... e6 {[%clk 0:03:00.3]} 2. d4 {[%clk 0:03:01]} 2...
d5 {[%clk 0:02:59.7]} 3. e5 {[%clk 0:03:01.6]} 3... c5 {[%clk 0:03:00.1]} 4. c3
{[%clk 0:03:02.1]} 4... Qa5 {[%clk 0:03:00.5]} 5. a3 {[%clk 0:02:49]} 5... Nc6
{[%clk 0:02:50]} 6. Nf3 {[%clk 0:02:48.5]} 6... Bd7 {[%clk 0:02:41.4]} 7. Be2
{[%clk 0:02:44.8]} 7... cxd4 {[%clk 0:02:36]} 8. b4 {[%clk 0:02:43.8]} 8... Qb6
{[%clk 0:02:36.6]} 9. cxd4 {[%clk 0:02:42.9]} 9... Nge7 {[%clk 0:02:37.3]} 10.
Nc3 {[%clk 0:02:36.6]} 10... Nf5 {[%clk 0:02:01.5]} 11. Na4 {[%clk 0:02:36.5]}
11... Qd8 {[%clk 0:02:02]} 12. Bg5 {[%clk 0:02:24.3]} 12... Be7 {[%clk
0:01:58.5]} 13. Bxe7 {[%clk 0:02:22.7]} 13... Ncxe7 {[%clk 0:01:55.6]} 14. Nc5
{[%clk 0:02:22.5]} 14... b6 {[%clk 0:01:51.8]} 15. Nd3 {[%clk 0:02:15.9]} 15...
Ng6 {[%clk 0:01:47.8]} 16. g3 {[%clk 0:02:14.8]} 16... O-O {[%clk 0:01:28.5]}
17. h4 {[%clk 0:02:14.3]} 17... f6 {[%clk 0:01:22.7]} 18. h5 {[%clk 0:02:13]}
18... Nh8 {[%clk 0:01:23.1]} 19. exf6 {[%clk 0:01:43.4]} 19... Qxf6 {[%clk
0:01:20.9]} 20. Nde5 {[%clk 0:01:41.5]} 20... Qe7 {[%clk 0:01:18.6]} 21. O-O
{[%clk 0:01:35]} 21... Be8 {[%clk 0:01:16.9]} 22. Nh2 {[%clk 0:01:33.3]} 22...
Nf7 {[%clk 0:01:14.3]} 23. Nhg4 {[%clk 0:01:30.5]} 23... N7d6 {[%clk 0:01:06.9]}
24. h6 {[%clk 0:01:30]} 24... gxh6 {[%clk 0:01:05.5]} 25. Qc1 {[%clk 0:01:23.7]}
25... Qg7 {[%clk 0:01:04.7]} 26. Qb2 {[%clk 0:01:13.7]} 26... h5 {[%clk
0:01:01.7]} 27. Nh2 {[%clk 0:01:13.2]} 27... Ne4 {[%clk 0:00:57.1]} 28. Bd3
{[%clk 0:01:10.3]} 28... Nfd6 {[%clk 0:00:45.6]} 29. Bxe4 {[%clk 0:01:07.9]}
29... Nxe4 {[%clk 0:00:46.5]} 30. Nhf3 {[%clk 0:01:01.4]} 30... h4 {[%clk
0:00:41.9]} 31. Nxh4 {[%clk 0:00:59.8]} 31... Bb5 {[%clk 0:00:42.1]} 32. Ng2
{[%clk 0:00:47.5]} 32... Bxf1 {[%clk 0:00:40.9]} 33. Rxf1 {[%clk 0:00:46.7]}
33... Rac8 {[%clk 0:00:36.4]} 34. Qe2 {[%clk 0:00:44.9]} 34... Rc3 {[%clk
0:00:29.5]} 35. g4 {[%clk 0:00:39.3]} 35... Qc7 {[%clk 0:00:24.1]} 36. Ne3
{[%clk 0:00:32.9]} 36... Ng5 {[%clk 0:00:24.5]} 37. Kh2 {[%clk 0:00:30.1]} 37...
Nf7 {[%clk 0:00:23.9]} 38. f4 {[%clk 0:00:28.4]} 38... Nxe5 {[%clk 0:00:23.7]}
39. dxe5 {[%clk 0:00:28]} 39... d4 {[%clk 0:00:23]} 40. Ng2 {[%clk 0:00:28]}
40... Rc2 {[%clk 0:00:20.4]} 41. Qe4 {[%clk 0:00:27.5]} 41... Qc6 {[%clk
0:00:20]} 42. Qxc6 {[%clk 0:00:26.6]} 42... Rxc6 {[%clk 0:00:20.9]} 43. Rd1
{[%clk 0:00:26.7]} 43... Rd8 {[%clk 0:00:21.2]} 44. Ne1 {[%clk 0:00:25.5]} 44...
d3 {[%clk 0:00:19.5]} 45. Rxd3 {[%clk 0:00:24.5]} 45... Rxd3 {[%clk 0:00:18.5]}
46. Nxd3 {[%clk 0:00:24.6]} 46... Rc2+ {[%clk 0:00:19.1]} 47. Kg1 {[%clk
0:00:24.7]} 47... Rc3 {[%clk 0:00:19.8]} 48. Nf2 {[%clk 0:00:24]} 48... Rxa3
{[%clk 0:00:20]} 49. Ne4 {[%clk 0:00:23.6]} 49... a5 {[%clk 0:00:19.3]} 50. bxa5
{[%clk 0:00:22.1]} 50... bxa5 {[%clk 0:00:20.2]} 51. f5 {[%clk 0:00:22]} 51...
exf5 {[%clk 0:00:19.1]} 52. gxf5 {[%clk 0:00:21.5]} 52... Re3 {[%clk 0:00:19.7]}
53. Nf6+ {[%clk 0:00:20.3]} 53... Kf7 {[%clk 0:00:19.7]} 54. Nd7 {[%clk
0:00:19.6]} 54... a4 {[%clk 0:00:19.5]} 55. Kf2 {[%clk 0:00:19.6]} 55... a3
{[%clk 0:00:13.6]} 56. Kxe3 {[%clk 0:00:17.7]} 56... a2 {[%clk 0:00:14.2]} 57.
e6+ {[%clk 0:00:17.1]} 57... Ke7 {[%clk 0:00:14.7]} 58. f6+ {[%clk 0:00:16.4]}
58... Kxe6 {[%clk 0:00:14.5]} 59. Nc5+ {[%clk 0:00:16.3]} 59... Kxf6 {[%clk
0:00:13.8]} 60. Nb3 {[%clk 0:00:15.9]} 60... Ke5 {[%clk 0:00:14.1]} 61. Kd2
{[%clk 0:00:13.3]} 61... h5 {[%clk 0:00:14.2]} 62. Kc2 {[%clk 0:00:13.2]} 62...
h4 {[%clk 0:00:14.5]} 63. Kb2 {[%clk 0:00:13.3]} 63... Ke4 {[%clk 0:00:04.2]}
64. Nd2+ {[%clk 0:00:11.4]} 64... Ke3 {[%clk 0:00:04.4]} 65. Nf1+ {[%clk
0:00:11.9]} 65... Kf2 {[%clk 0:00:04.3]} 66. Nh2 {[%clk 0:00:12.3]} 66... Kg2
{[%clk 0:00:04.3]} 67. Ng4 {[%clk 0:00:11.6]} 67... Kg3 {[%clk 0:00:05.2]} 68.
Ne3 {[%clk 0:00:11.5]} 68... Kf3 {[%clk 0:00:06.1]} 69. Nf1 {[%clk 0:00:11.3]}
69... Kg2 {[%clk 0:00:06.8]} 70. Ne3+ {[%clk 0:00:11.3]} 70... Kf2 {[%clk
0:00:07.7]} 71. Ng4+ {[%clk 0:00:11.2]} 71... Kg3 {[%clk 0:00:08.6]} 72. Ne3
{[%clk 0:00:11.2]} 72... h3 {[%clk 0:00:09.2]} 73. Kxa2 {[%clk 0:00:10.6]} 73...
Kf3 {[%clk 0:00:10.1]} 74. Nf1 {[%clk 0:00:10.4]} 74... Kf2 {[%clk 0:00:11]} 75.
Nh2 {[%clk 0:00:10.2]} 75... Kg3 {[%clk 0:00:11.9]} 76. Nf1+ {[%clk 0:00:10.1]}
76... Kg2 {[%clk 0:00:12.8]} 77. Ne3+ {[%clk 0:00:10.1]} 77... Kg3 {[%clk
0:00:13.3]} 78. Nf1+ {[%clk 0:00:10.3]} 78... Kf2 {[%clk 0:00:14.1]} 79. Nh2
{[%clk 0:00:10.4]} 79... Kg3 {[%clk 0:00:13.3]} 80. Nf1+ {[%clk 0:00:10.5]}
1/2-1/2

[Event "*** Titled Tuesday Blitz"]
[Site "Chess.com"]
[Date "2021.02.02"]
[Round "10"]
[White "starplatinum2030"]
[Black "CzechmVIII"]
[Result "0-1"]
[WhiteElo "2093"]
[BlackElo "2274"]
[TimeControl "180+1"]
[EndTime "11:51:40 PST"]
[Termination "CzechmVIII won by resignation"]

1. e4 {[%clk 0:03:00.9]} 1... c5 {[%clk 0:02:59.6]} 2. Nf3 {[%clk 0:03:00.6]}
2... d6 {[%clk 0:02:59.9]} 3. d4 {[%clk 0:03:01]} 3... cxd4 {[%clk 0:03:00.1]}
4. Nxd4 {[%clk 0:03:01.9]} 4... Nf6 {[%clk 0:03:00.4]} 5. Nc3 {[%clk 0:03:02.4]}
5... g6 {[%clk 0:03:01.1]} 6. Be3 {[%clk 0:03:02]} 6... Bg7 {[%clk 0:03:01.7]}
7. f3 {[%clk 0:03:00.3]} 7... Nc6 {[%clk 0:03:02.2]} 8. Qd2 {[%clk 0:03:00.1]}
8... O-O {[%clk 0:03:02.1]} 9. Bc4 {[%clk 0:03:00.5]} 9... Bd7 {[%clk
0:03:01.6]} 10. O-O-O {[%clk 0:03:00.7]} 10... Rc8 {[%clk 0:03:01.3]} 11. Bb3
{[%clk 0:03:01.3]} 11... Nxd4 {[%clk 0:03:01.5]} 12. Bxd4 {[%clk 0:03:00]} 12...
b5 {[%clk 0:03:02.1]} 13. h4 {[%clk 0:02:58.2]} 13... a5 {[%clk 0:03:01.7]} 14.
a4 {[%clk 0:02:51.3]} 14... bxa4 {[%clk 0:03:01.7]} 15. Nxa4 {[%clk 0:02:49.1]}
15... Bxa4 {[%clk 0:03:01.6]} 16. Bxa4 {[%clk 0:02:47.9]} 16... Rc4 {[%clk
0:03:02.5]} 17. Bb3 {[%clk 0:02:45.6]} 17... Nxe4 {[%clk 0:03:02.5]} 18. Qe3
{[%clk 0:02:33.8]} 18... Rxd4 {[%clk 0:02:54]} 19. Rxd4 {[%clk 0:02:06.1]} 19...
Ng3 {[%clk 0:02:53.5]} 20. Re1 {[%clk 0:01:47.7]} 20... Nf5 {[%clk 0:02:42.9]}
0-1

[Event "*** Titled Tuesday Blitz"]
[Site "Chess.com"]
[Date "2021.02.02"]
[Round "10"]
[White "Taran2004"]
[Black "onetowin"]
[Result "1-0"]
[WhiteElo "2159"]
[BlackElo "1992"]
[TimeControl "180+1"]
[EndTime "11:51:43 PST"]
[Termination "Taran2004 won by resignation"]

1. Nf3 {[%clk 0:03:00.9]} 1... b6 {[%clk 0:03:00.9]} 2. g3 {[%clk 0:03:00.5]}
2... Bb7 {[%clk 0:03:01]} 3. Bg2 {[%clk 0:03:01.2]} 3... e6 {[%clk 0:03:01.2]}
4. O-O {[%clk 0:03:01.4]} 4... Nf6 {[%clk 0:03:01.2]} 5. c4 {[%clk 0:03:02]}
5... d6 {[%clk 0:03:01.4]} 6. Nc3 {[%clk 0:03:01.8]} 6... Be7 {[%clk 0:03:01.4]}
7. d4 {[%clk 0:03:02.4]} 7... Nbd7 {[%clk 0:03:01.2]} 8. Re1 {[%clk 0:03:00.3]}
8... O-O {[%clk 0:02:58.9]} 9. Qc2 {[%clk 0:03:00.6]} 9... Rb8 {[%clk
0:02:38.3]} 10. e4 {[%clk 0:03:00.3]} 10... e5 {[%clk 0:02:37.5]} 11. Be3 {[%clk
0:02:56.8]} 11... Re8 {[%clk 0:02:22.1]} 12. Rad1 {[%clk 0:02:56.1]} 12... exd4
{[%clk 0:02:14.2]} 13. Nxd4 {[%clk 0:02:55.2]} 13... Ne5 {[%clk 0:02:09.7]} 14.
b3 {[%clk 0:02:52.8]} 14... Bf8 {[%clk 0:02:01.7]} 15. h3 {[%clk 0:02:51.1]}
15... Bc8 {[%clk 0:01:34.1]} 16. f4 {[%clk 0:02:48.7]} 16... Ned7 {[%clk
0:01:29.2]} 17. Nc6 {[%clk 0:02:47.7]} 1-0

[Event "*** Titled Tuesday Blitz"]
[Site "Chess.com"]
[Date "2021.02.02"]
[Round "10"]
[White "Tekushka"]
[Black "andrewtnb"]
[Result "1-0"]
[WhiteElo "2442"]
[BlackElo "2294"]
[TimeControl "180+1"]
[EndTime "11:51:51 PST"]
[Termination "Tekushka won by resignation"]

1. e4 {[%clk 0:03:00.9]} 1... c6 {[%clk 0:01:56.7]} 2. d4 {[%clk 0:02:59.7]}
2... d5 {[%clk 0:01:56.8]} 3. Nd2 {[%clk 0:02:57.8]} 3... dxe4 {[%clk
0:01:56.7]} 4. Nxe4 {[%clk 0:02:58.1]} 4... Nf6 {[%clk 0:01:57.1]} 5. Nxf6+
{[%clk 0:02:58.1]} 5... exf6 {[%clk 0:01:57.8]} 6. c3 {[%clk 0:02:58.4]} 6...
Be6 {[%clk 0:01:57.2]} 7. Bd3 {[%clk 0:02:54.7]} 7... Bd6 {[%clk 0:01:57.7]} 8.
Qc2 {[%clk 0:02:48.4]} 8... O-O {[%clk 0:01:57.1]} 9. Bxh7+ {[%clk 0:02:46.6]}
9... Kh8 {[%clk 0:01:57.7]} 10. Bd3 {[%clk 0:02:45]} 10... Bd5 {[%clk
0:01:57.5]} 11. Nf3 {[%clk 0:02:34.2]} 11... Re8+ {[%clk 0:01:55.7]} 12. Be3
{[%clk 0:02:34.2]} 12... Bf4 {[%clk 0:01:51.9]} 13. O-O-O {[%clk 0:02:30.9]}
13... Bxe3+ {[%clk 0:01:51]} 14. fxe3 {[%clk 0:02:31.1]} 14... Bxf3 {[%clk
0:01:50.5]} 15. gxf3 {[%clk 0:02:27.6]} 15... Rxe3 {[%clk 0:01:51]} 16. Qf2
{[%clk 0:02:21]} 16... Qe7 {[%clk 0:01:40.8]} 17. Qh4+ {[%clk 0:02:19.7]} 1-0

[Event "*** Titled Tuesday Blitz"]
[Site "Chess.com"]
[Date "2021.02.02"]
[Round "10"]
[White "YIYUKI"]
[Black "InitiatingASC"]
[Result "0-1"]
[WhiteElo "2238"]
[BlackElo "2397"]
[TimeControl "180+1"]
[EndTime "11:51:57 PST"]
[Termination "InitiatingASC won by resignation"]

1. d4 {[%clk 0:03:00.9]} 1... Nf6 {[%clk 0:02:56.2]} 2. c4 {[%clk 0:03:00.6]}
2... e6 {[%clk 0:02:54.1]} 3. Nc3 {[%clk 0:03:00.4]} 3... b6 {[%clk 0:02:53.3]}
4. e4 {[%clk 0:02:59.5]} 4... d6 {[%clk 0:02:52.5]} 5. Bd3 {[%clk 0:02:53.7]}
5... Nbd7 {[%clk 0:02:50.9]} 6. Nf3 {[%clk 0:02:53.2]} 6... c5 {[%clk
0:02:48.5]} 7. d5 {[%clk 0:02:53.1]} 7... exd5 {[%clk 0:02:46]} 8. cxd5 {[%clk
0:02:53.2]} 8... g6 {[%clk 0:02:45.8]} 9. O-O {[%clk 0:02:52.3]} 9... Bg7 {[%clk
0:02:46.3]} 10. h3 {[%clk 0:02:52.6]} 10... O-O {[%clk 0:02:41.4]} 11. Bg5
{[%clk 0:02:51.9]} 11... a6 {[%clk 0:02:39.6]} 12. a4 {[%clk 0:02:48.3]} 12...
Qc7 {[%clk 0:02:38.2]} 13. Re1 {[%clk 0:02:45.6]} 13... c4 {[%clk 0:02:32.4]}
14. Bc2 {[%clk 0:02:42.2]} 14... Nc5 {[%clk 0:02:32.7]} 15. e5 {[%clk
0:02:19.4]} 15... Ne8 {[%clk 0:02:25.4]} 16. exd6 {[%clk 0:01:52.5]} 16... Nxd6
{[%clk 0:02:24.3]} 17. Nd4 {[%clk 0:01:51.3]} 17... Bd7 {[%clk 0:02:15.7]} 18.
Qf3 {[%clk 0:01:49.3]} 18... Bxd4 {[%clk 0:02:07.1]} 0-1

[Event "*** Titled Tuesday Blitz"]
[Site "Chess.com"]
[Date "2021.02.02"]
[Round "10"]
[White "krasavetc"]
[Black "Sergey85Rodchenkov"]
[Result "0-1"]
[WhiteElo "2357"]
[BlackElo "2506"]
[TimeControl "180+1"]
[EndTime "11:52:00 PST"]
[Termination "Sergey85Rodchenkov won by resignation"]

1. e4 {[%clk 0:03:00.9]} 1... c5 {[%clk 0:02:59.1]} 2. c3 {[%clk 0:02:54.5]}
2... d5 {[%clk 0:02:58.6]} 3. exd5 {[%clk 0:02:55.4]} 3... Qxd5 {[%clk 0:02:58]}
4. d4 {[%clk 0:02:55.9]} 4... Nf6 {[%clk 0:02:57.4]} 5. Nf3 {[%clk 0:02:55.3]}
5... Nc6 {[%clk 0:02:56.5]} 6. Be2 {[%clk 0:02:52]} 6... cxd4 {[%clk 0:02:55.5]}
7. cxd4 {[%clk 0:02:49.7]} 7... Bg4 {[%clk 0:02:55.6]} 8. Nc3 {[%clk 0:02:48.3]}
8... Qa5 {[%clk 0:02:55.6]} 9. d5 {[%clk 0:02:45.5]} 9... O-O-O {[%clk
0:02:55.3]} 10. O-O {[%clk 0:02:36.9]} 10... e6 {[%clk 0:02:55.1]} 11. Bd2
{[%clk 0:02:30.5]} 11... Nxd5 {[%clk 0:02:53.6]} 12. Qb3 {[%clk 0:02:25.1]}
12... Qb6 {[%clk 0:02:48.9]} 13. Bb5 {[%clk 0:01:40.1]} 13... Bxf3 {[%clk
0:02:46.7]} 14. gxf3 {[%clk 0:01:38.9]} 14... Kb8 {[%clk 0:02:26.3]} 15. Nxd5
{[%clk 0:01:34.3]} 15... Rxd5 {[%clk 0:02:25.4]} 16. Be3 {[%clk 0:01:30.3]}
16... Qxb5 {[%clk 0:02:23.1]} 0-1

[Event "*** Titled Tuesday Blitz"]
[Site "Chess.com"]
[Date "2021.02.02"]
[Round "10"]
[White "anon219"]
[Black "TregubovP"]
[Result "1-0"]
[WhiteElo "2877"]
[BlackElo "2596"]
[TimeControl "180+1"]
[EndTime "11:53:06 PST"]
[Termination "anon219 won by resignation"]

1. e4 {[%clk 0:03:00.9]} 1... e6 {[%clk 0:02:59.7]} 2. d4 {[%clk 0:03:00.7]}
2... d5 {[%clk 0:03:00.1]} 3. e5 {[%clk 0:03:01.1]} 3... c5 {[%clk 0:02:59.9]}
4. c3 {[%clk 0:03:01.7]} 4... Nc6 {[%clk 0:03:00.4]} 5. Nf3 {[%clk 0:03:02.3]}
5... Qb6 {[%clk 0:03:00.8]} 6. a3 {[%clk 0:03:01]} 6... Bd7 {[%clk 0:03:00.3]}
7. Be2 {[%clk 0:02:54.4]} 7... Nge7 {[%clk 0:02:39.6]} 8. b4 {[%clk 0:02:40.1]}
8... cxd4 {[%clk 0:02:39.1]} 9. cxd4 {[%clk 0:02:40.7]} 9... Nf5 {[%clk
0:02:37.4]} 10. Bb2 {[%clk 0:02:38]} 10... Be7 {[%clk 0:02:35.1]} 11. O-O {[%clk
0:02:36]} 11... Rc8 {[%clk 0:02:34.4]} 12. Bd3 {[%clk 0:02:30.9]} 12... Ncxd4
{[%clk 0:02:21]} 13. Nxd4 {[%clk 0:02:27.9]} 13... Nxd4 {[%clk 0:02:20.5]} 14.
Qg4 {[%clk 0:02:28.8]} 14... Nf5 {[%clk 0:02:11.5]} 15. Bxf5 {[%clk 0:02:24.3]}
15... exf5 {[%clk 0:02:11.7]} 16. Qxg7 {[%clk 0:02:24.9]} 16... Rf8 {[%clk
0:02:11.9]} 17. Nc3 {[%clk 0:02:22.2]} 17... Qg6 {[%clk 0:01:32.8]} 18. Qxg6
{[%clk 0:02:19]} 18... hxg6 {[%clk 0:01:32.8]} 19. Nxd5 {[%clk 0:02:19.3]} 19...
Rc2 {[%clk 0:01:29.3]} 20. Bd4 {[%clk 0:02:15.3]} 20... b6 {[%clk 0:01:13.8]}
21. Rac1 {[%clk 0:02:11.9]} 21... Rxc1 {[%clk 0:01:07.2]} 22. Rxc1 {[%clk
0:02:12.8]} 22... Be6 {[%clk 0:01:07.6]} 23. Nxe7 {[%clk 0:02:07.4]} 23... Kxe7
{[%clk 0:01:06.4]} 24. Rc7+ {[%clk 0:02:08.3]} 1-0

[Event "*** Titled Tuesday Blitz"]
[Site "Chess.com"]
[Date "2021.02.02"]
[Round "10"]
[White "Al_Shima"]
[Black "Das_Virus_2020"]
[Result "0-1"]
[WhiteElo "2297"]
[BlackElo "2415"]
[TimeControl "180+1"]
[EndTime "11:53:37 PST"]
[Termination "Das_Virus_2020 won by resignation"]

1. e4 {[%clk 0:02:54.4]} 1... e6 {[%clk 0:02:59.7]} 2. d4 {[%clk 0:02:53.6]}
2... d5 {[%clk 0:02:59.8]} 3. e5 {[%clk 0:02:52.6]} 3... c5 {[%clk 0:02:59.4]}
4. c3 {[%clk 0:02:52.4]} 4... Nc6 {[%clk 0:02:58.5]} 5. Nf3 {[%clk 0:02:50.7]}
5... Qb6 {[%clk 0:02:58.5]} 6. Be2 {[%clk 0:02:49.5]} 6... cxd4 {[%clk
0:02:56.2]} 7. cxd4 {[%clk 0:02:49.1]} 7... Nh6 {[%clk 0:02:56]} 8. b3 {[%clk
0:02:43.7]} 8... Nf5 {[%clk 0:02:54.6]} 9. Bb2 {[%clk 0:02:43.7]} 9... Bb4+
{[%clk 0:02:47.5]} 10. Kf1 {[%clk 0:02:40.3]} 10... h5 {[%clk 0:02:47.3]} 11. a3
{[%clk 0:02:35.3]} 11... Be7 {[%clk 0:02:46.9]} 12. b4 {[%clk 0:02:35.5]} 12...
Bd7 {[%clk 0:02:44]} 13. Qd3 {[%clk 0:02:24.9]} 13... Na5 {[%clk 0:02:35.2]} 14.
Nbd2 {[%clk 0:02:05.2]} 14... Rc8 {[%clk 0:02:27.2]} 15. bxa5 {[%clk 0:01:48.9]}
15... Qxb2 {[%clk 0:02:25.9]} 16. Rb1 {[%clk 0:01:49.3]} 16... Rc1+ {[%clk
0:02:24.9]} 17. Rxc1 {[%clk 0:01:48.7]} 17... Qxc1+ {[%clk 0:02:25.8]} 18. Ne1
{[%clk 0:01:48.5]} 18... Qxa3 {[%clk 0:02:15.1]} 19. Qxa3 {[%clk 0:01:39.9]}
19... Bxa3 {[%clk 0:02:16]} 20. Nc2 {[%clk 0:01:39.4]} 20... Bb2 {[%clk
0:02:10.8]} 21. g4 {[%clk 0:00:42.8]} 21... hxg4 {[%clk 0:02:08.9]} 22. Bxg4
{[%clk 0:00:43.7]} 22... Nxd4 {[%clk 0:02:07.2]} 23. Nxd4 {[%clk 0:00:44.6]}
23... Bxd4 {[%clk 0:02:06.9]} 24. f4 {[%clk 0:00:45.2]} 24... Ke7 {[%clk
0:02:02.5]} 25. Ke2 {[%clk 0:00:44.3]} 25... Bb5+ {[%clk 0:02:00.3]} 26. Kf3
{[%clk 0:00:43.6]} 26... Rc8 {[%clk 0:01:59.7]} 27. Nb3 {[%clk 0:00:41.9]} 27...
Rc3+ {[%clk 0:01:58.9]} 0-1

[Event "*** Titled Tuesday Blitz"]
[Site "Chess.com"]
[Date "2021.02.02"]
[Round "10"]
[White "JTCoach"]
[Black "Isajevsky_Anton"]
[Result "1-0"]
[WhiteElo "2719"]
[BlackElo "2543"]
[TimeControl "180+1"]
[EndTime "11:53:51 PST"]
[Termination "JTCoach won by resignation"]

1. d4 {[%clk 0:03:00.9]} 1... d5 {[%clk 0:02:59.8]} 2. Nf3 {[%clk 0:03:00.5]}
2... Nf6 {[%clk 0:02:59.4]} 3. Bf4 {[%clk 0:03:01]} 3... c5 {[%clk 0:02:59]} 4.
e3 {[%clk 0:03:01.4]} 4... cxd4 {[%clk 0:02:58.5]} 5. exd4 {[%clk 0:03:01.1]}
5... Nc6 {[%clk 0:02:58.9]} 6. c3 {[%clk 0:03:00.3]} 6... Bf5 {[%clk 0:02:57]}
7. Nbd2 {[%clk 0:03:00]} 7... e6 {[%clk 0:02:57.1]} 8. Be2 {[%clk 0:02:59.6]}
8... h6 {[%clk 0:02:49.3]} 9. O-O {[%clk 0:02:58.4]} 9... Be7 {[%clk 0:02:48.9]}
10. Qb3 {[%clk 0:02:53.8]} 10... Qc8 {[%clk 0:02:43.4]} 11. Rfe1 {[%clk
0:02:48.8]} 11... O-O {[%clk 0:02:43]} 12. Ne5 {[%clk 0:02:46.6]} 12... Nxe5
{[%clk 0:02:39.9]} 13. Bxe5 {[%clk 0:02:46.8]} 13... Ne4 {[%clk 0:02:32]} 14.
Nxe4 {[%clk 0:02:45.4]} 14... Bxe4 {[%clk 0:02:32.4]} 15. c4 {[%clk 0:02:28.5]}
15... Qd7 {[%clk 0:01:53.9]} 16. c5 {[%clk 0:02:23.8]} 16... f6 {[%clk
0:01:38.9]} 17. Bg3 {[%clk 0:02:22.7]} 17... e5 {[%clk 0:01:21]} 18. Bb5 {[%clk
0:02:13.6]} 18... Qf5 {[%clk 0:01:16.8]} 19. f3 {[%clk 0:02:08]} 19... Bc2
{[%clk 0:01:16.8]} 20. Qxd5+ {[%clk 0:02:05.3]} 20... Kh8 {[%clk 0:01:17.2]} 21.
Qxb7 {[%clk 0:01:48.3]} 21... Rfb8 {[%clk 0:00:54.8]} 22. Qxe7 {[%clk
0:01:46.2]} 22... Rxb5 {[%clk 0:00:55]} 23. dxe5 {[%clk 0:01:27.4]} 1-0